fUSD/lending_fUSD_20240201
["ID","MTS","AMOUNT","RATE_DAILY","PERIOD"]
[313155012,1706824238688,-164.0,0.00026106,2]
[313155013,1706824238697,-694.29,0.00026278,2]
[313155014,1706824238707,-416.32,0.00026591,2]
[313155015,1706824238716,-167.02,0.00026602,2]
[313155016,1706824238726,-1268.42,0.00026773,2]
[313155017,1706824238735,-1250.0,0.00026866,2]
[313155018,1706824238744,-215.0,0.00026866,2]
[313155019,1706824238753,-705.0,0.00026866,2]
[313155020,1706824238763,-1235.0,0.00026866,2]
[313155021,1706824238772,-528.0,0.00026866,2]
[313155022,1706824238781,-210.0,0.00026866,2]
[313155023,1706824238791,-2281.0,0.00026866,2]
[313155024,1706824238803,-1031.0,0.00026866,2]
[313155025,1706824238812,-168.1,0.00026993,2]
[313155026,1706824238822,-1300.0,0.00027,3]
[313155027,1706824238831,-694.29,0.00027146,2]
[313155028,1706824238841,-800.0,0.00027151,2]
[313155029,1706824238850,-155.0,0.00027397,2]
[313155030,1706824238859,-664.46,0.00027397,2]
[313155031,1706824238869,-182.4,0.00027397,2]
[313155032,1706824238878,-170.76794825,0.00027438,3]
[313155033,1706824238889,-664.46,0.00027541,2]
[313155034,1706824238898,-182.4,0.00027556,2]
[313155035,1706824238907,-283.25,0.00027609,2]
[313155036,1706824238916,-664.46,0.00027686,2]
[313155037,1706824238925,-182.4,0.00027714,2]
[313155038,1706824238935,-664.46,0.0002783,2]
[313155039,1706824238944,-868.8,0.00027869,2]
[313155040,1706824238953,-182.4,0.00027872,2]
[313155041,1706824238962,-664.46,0.00027974,2]
[313155042,1706824238972,-691.09338038,0.00028,2]
[313155043,1706824238981,-200.86162821,0.00028,2]
[313155044,1706824238991,-694.29,0.00028013,2]
[313155045,1706824239001,-182.4,0.0002803,2]
[313155046,1706824239010,-664.46,0.00028118,2]
[313155047,1706824239019,-182.4,0.00028189,2]
[313155048,1706824239029,-664.46,0.00028262,2]
[313155049,1706824239038,-182.4,0.00028347,2]
[313155050,1706824239048,-664.46,0.00028407,2]
[313155051,1706824239058,-1268.42,0.00028417,2]
[313155052,1706824239067,-182.4,0.00028505,2]
[313155053,1706824239076,-664.46,0.00028551,2]
[313155054,1706824239085,-182.4,0.00028664,2]
[313155055,1706824239095,-664.46,0.00028695,2]
[313155056,1706824239104,-155.0,0.00028767,2]
[313155057,1706824239114,-168.1,0.00028793,2]
[313155058,1706824239123,-182.4,0.00028822,2]
[313155059,1706824239133,-664.46,0.00028839,2]
[313155060,1706824239142,-694.29,0.00028881,2]
[313155061,1706824239151,-19191.13780264,0.000289,2]
[313155062,1706824239160,-664.46,0.00028983,2]
[313155063,1706824239169,-1350.0,0.00029,3]
[313155064,1706824239179,-664.46,0.00029128,2]
[313155065,1706824239189,-664.46,0.00029272,2]
[313155066,1706824239198,-664.46,0.00029416,2]
[313155067,1706824239207,-209.815957,0.00029487,3]
[313155068,1706824239217,-155.0,0.000295,3]
[313155069,1706824239226,-664.46,0.0002956,2]
[313155070,1706824239236,-664.46,0.00029704,2]
[313155071,1706824239246,-694.29,0.00029749,2]
[313155072,1706824239255,-176.02968704,0.000298,2]
[313155073,1706824239264,-163.95,0.00029832,2]
[313155074,1706824239274,-664.46,0.00029849,2]
[313155075,1706824239284,-1250.0,0.00029866,2]
[313155076,1706824239293,-215.0,0.00029866,2]
[313155077,1706824239302,-705.0,0.00029866,2]
[313155078,1706824239312,-1233.0,0.00029866,2]
[313155079,1706824239324,-210.0,0.00029866,2]
[313155080,1706824239334,-2092.133,0.00029866,2]
[313155081,1706824239343,-283.25,0.00029873,2]
[313155082,1706824239353,-800.0,0.00029973,2]
[313155083,1706824239362,-664.46,0.00029993,2]
[313155084,1706824239372,-19094.92022694,0.0003,4]
[313155085,1706824239382,-584.54150204,0.0003,2]
[313155086,1706824239391,-400.43026476,0.0003,4]
[313155087,1706824239401,-196.12353813,0.0003,4]
[313155088,1706824239411,-1636.2691927,0.0003,4]
[313155089,1706824239420,-1812.47800336,0.0003,4]
[313155090,1706824239430,-155.0,0.0003,2]
[313155091,1706824239439,-9669.73208063,0.0003,2]
[313155092,1706824239449,-155.0,0.0003,4]
[313155093,1706824239459,-694.13273302,0.0003,2]
[313155094,1706824239469,-155.25986779,0.0003,4]
[313155095,1706824239482,-155.19490441,0.0003,4]
[313155096,1706824239490,-110899.96611854,0.0003,4]
[313155097,1706824239500,-908.66062778,0.0003,4]
[313155098,1706824239510,-817.14411195,0.0003,4]
[313155099,1706824239519,-8871.64274788,0.0003,4]
[313155100,1706824239529,-183.545587,0.0003,2]
[313155101,1706824239538,-500.0,0.0003,2]
[313155102,1706824239548,-203.0,0.0003,2]
[313155103,1706824239557,-1268.42,0.00030061,2]
[313155104,1706824239566,-664.46,0.00030137,2]
[313155105,1706824239575,-157.47,0.00030137,2]
[313155106,1706824239586,-155.0,0.00030137,2]
[313155107,1706824239597,-361.54578775,0.00030163,2]
[313155108,1706824239606,-417.60997134,0.00030171,4]
[313155109,1706824239615,-1252.43284173,0.00030172,4]
[313155110,1706824239624,-343.24758046,0.00030173,4]
[313155111,1706824239635,-117553.68098806,0.00030173,2]
[313155112,1706824239645,-304.08770656,0.00030174,2]
[313155113,1706824239654,-183.96875123,0.00030174,4]
[313155114,1706824239663,-202.18313352,0.00030174,4]
[313155115,1706824239673,-370.93681553,0.00030174,4]
[313155116,1706824239681,-164.0,0.00030457,2]
[313155117,1706824239690,-168.1,0.00030592,2]
[313155118,1706824239699,-868.8,0.00030656,2]
[313155119,1706824239708,-157.47,0.0003092,2]
[313155120,1706824239717,-167.02,0.00030993,2]
[313155121,1706824239726,-1400.0,0.00031,3]
[313155122,1706824239736,-219.14,0.00031213,2]
[313155123,1706824239745,-152.56100804,0.0003132,2]
[313155124,1706824239754,-155.0,0.00031507,2]
[313155125,1706824239763,-263.24,0.00031644,2]
[313155126,1706824239772,-180.0,0.00031644,2]
[313155127,1706824239781,-157.47,0.00031703,2]
[313155128,1706824239791,-200.0,0.00031711,3]
[313155129,1706824239800,-201950.135207,0.000318,2]
[313155130,1706824239809,-420.0,0.00031867,5]
[313155131,1706824239818,-170.76794825,0.00031987,5]
[313155132,1706824239827,-7479.6346373,0.0003199,2]
[313155133,1706824239837,-13121.94330267,0.00032,4]
[313155134,1706824239846,-4305.84407526,0.00032,2]
[313155135,1706824239855,-283.25,0.00032136,2]
[313155136,1706824239864,-7479.6346373,0.0003239,2]
[313155137,1706824239873,-168.1,0.00032392,2]
[313155138,1706824239883,-269.09203509,0.000324,2]
[313155139,1706824239892,-269.09203502,0.000324,2]
[313155140,1706824239901,-269.09203502,0.000324,2]
[313155141,1706824239910,-269.09203502,0.000324,2]
[313155142,1706824239919,-269.09203502,0.000324,2]
[313155143,1706824239928,-269.09203502,0.000324,2]
[313155144,1706824239937,-269.09203502,0.000324,2]
[313155145,1706824239946,-157.47,0.00032485,2]
[313155146,1706824239956,-10120.42066199,0.000325,3]
[313155147,1706824239965,-269.09203502,0.00032746,2]
[313155148,1706824239974,-1250.0,0.00032866,2]
[313155149,1706824239983,-339.313,0.00032866,2]
[313155150,1706824239992,-1233.0,0.00032866,2]
[313155151,1706824240001,-210.0,0.00032866,2]
[313155152,1706824240011,-7479.6346373,0.00032867,3]
[313155153,1706824240020,-500.0,0.00032877,2]
[313155154,1706824240029,-500.0,0.00032877,2]
[313155155,1706824240038,-155.0,0.00032877,2]
[313155156,1706824240048,-2000.0,0.00033,5]
[313155157,1706824240057,-1450.0,0.00033,3]
[313155158,1706824240066,-203.0,0.00033,2]
[313155159,1706824240075,-157.47,0.00033268,2]
[313155160,1706824240084,-14959.2692746,0.00033313,4]
[313155161,1706824240094,-4430.0420486,0.0003332,2]
[313155162,1706824240103,-157.75448709,0.000334,4]
[313155163,1706824240112,-868.8,0.00033443,2]
[313155164,1706824240121,-157.0,0.000335,2]
[313155165,1706824240130,-765.43256456,0.00034,4]
[313155166,1706824240140,-157.47,0.00034051,2]
[313155167,1706824240149,-269.09203502,0.00034167,2]
[313155168,1706824240159,-155.0,0.00034247,2]
[313155169,1706824240168,-283.25,0.000344,2]
[313155170,1706824240177,-500.0,0.00034451,2]
[313155171,1706824240185,-169.31838675,0.00034451,2]
[313155172,1706824240194,-152.38581276,0.00034451,2]
[313155173,1706824240203,-164.0,0.00034808,2]
[313155174,1706824240213,-157.47,0.00034834,2]
[313155175,1706824240222,-350242.99252237,0.00034889,3]
[313155176,1706824240231,-29918.5385492,0.0003489,6]
[313155177,1706824240241,-350.0,0.000349,2]
[313155178,1706824240250,-500.0,0.000349,2]
[313155179,1706824240259,-500.0,0.000349,2]
[313155180,1706824240270,-500.0,0.000349,2]
[313155181,1706824240280,-500.0,0.000349,2]
[313155182,1706824240291,-500.0,0.000349,2]
[313155183,1706824240301,-500.0,0.000349,2]
[313155184,1706824240310,-500.0,0.000349,2]
[313155185,1706824240320,-500.0,0.000349,2]
[313155186,1706824240332,-500.0,0.000349,2]
[313155187,1706824240342,-500.0,0.000349,2]
[313155188,1706824240351,-500.0,0.000349,2]
[313155189,1706824240361,-500.0,0.000349,2]
[313155190,1706824240370,-500.0,0.000349,2]
[313155191,1706824240380,-500.0,0.000349,2]
[313155192,1706824240390,-500.0,0.000349,2]
[313155193,1706824240400,-500.0,0.000349,2]
[313155194,1706824240409,-500.0,0.000349,2]
[313155195,1706824240419,-450.0,0.000349,2]
[313155197,1706824240428,-500.0,0.000349,2]
[313155198,1706824240438,-500.0,0.000349,2]
[313155199,1706824240447,-500.0,0.000349,2]
[313155200,1706824240457,-500.0,0.000349,2]
[313155201,1706824240466,-500.0,0.000349,2]
[313155202,1706824240477,-500.0,0.000349,2]
[313155203,1706824240487,-500.0,0.000349,2]
[313155204,1706824240497,-500.0,0.000349,2]
[313155205,1706824240507,-500.0,0.000349,2]
[313155206,1706824240518,-500.0,0.000349,2]
[313155207,1706824240529,-500.0,0.000349,2]
[313155208,1706824240539,-500.0,0.000349,2]
[313155209,1706824240553,-500.0,0.000349,2]
[313155210,1706824240564,-500.0,0.000349,2]
[313155211,1706824240574,-500.0,0.000349,2]
[313155212,1706824240586,-500.0,0.000349,2]
[313155213,1706824240775,-500.0,0.000349,2]
[313155214,1706824240793,-500.0,0.000349,2]
[313155215,1706824240805,-500.0,0.000349,2]
[313155216,1706824240818,-500.0,0.000349,2]
[313155217,1706824240829,-500.0,0.000349,2]
[313155218,1706824240839,-500.0,0.000349,2]
[313155219,1706824240849,-500.0,0.000349,2]
[313155220,1706824240860,-500.0,0.000349,2]
[313155221,1706824241086,-500.0,0.000349,2]
[313155222,1706824241098,-500.0,0.000349,2]
[313155223,1706824241109,-500.0,0.000349,2]
[313155224,1706824241121,-500.0,0.000349,2]
[313155225,1706824241131,-500.0,0.000349,2]
[313155226,1706824241144,-500.0,0.000349,2]
[313155227,1706824241154,-500.0,0.000349,2]
[313155228,1706824241165,-500.0,0.000349,2]
[313155229,1706824241176,-500.0,0.000349,2]
[313155230,1706824241187,-500.0,0.000349,2]
[313155231,1706824241197,-500.0,0.000349,2]
[313155232,1706824241207,-500.0,0.000349,2]
[313155233,1706824241218,-500.0,0.000349,2]
[313155234,1706824241229,-500.0,0.000349,2]
[313155235,1706824241241,-500.0,0.000349,2]
[313155236,1706824241251,-500.0,0.000349,2]
[313155237,1706824241263,-500.0,0.000349,2]
[313155238,1706824241274,-500.0,0.000349,2]
[313155239,1706824241288,-500.0,0.000349,2]
[313155240,1706824241300,-500.0,0.000349,2]
[313155241,1706824241311,-500.0,0.000349,2]
[313155242,1706824241323,-500.0,0.000349,2]
[313155243,1706824241337,-500.0,0.000349,2]
[313155244,1706824241349,-500.0,0.000349,2]
[313155245,1706824241361,-500.0,0.000349,2]
[313155246,1706824241372,-500.0,0.000349,2]
[313155247,1706824241384,-500.0,0.000349,2]
[313155248,1706824241395,-500.0,0.000349,2]
[313155249,1706824241407,-500.0,0.000349,2]
[313155250,1706824241419,-500.0,0.000349,2]
[313155251,1706824241430,-500.0,0.000349,2]
[313155252,1706824241443,-500.0,0.000349,2]
[313155253,1706824241455,-500.0,0.000349,2]
[313155254,1706824241467,-500.0,0.000349,2]
[313155255,1706824241477,-500.0,0.000349,2]
[313155256,1706824241491,-500.0,0.000349,2]
[313155257,1706824241503,-450.0,0.000349,2]
[313155258,1706824241514,-500.0,0.000349,2]
[313155259,1706824241526,-500.0,0.000349,2]
[313155260,1706824241537,-500.0,0.000349,2]
[313155261,1706824241548,-500.0,0.000349,2]
[313155262,1706824241558,-500.0,0.000349,2]
[313155263,1706824241569,-500.0,0.000349,2]
[313155264,1706824241580,-500.0,0.000349,2]
[313155265,1706824241593,-500.0,0.000349,2]
[313155266,1706824241603,-500.0,0.000349,2]
[313155267,1706824241613,-500.0,0.000349,2]
[313155268,1706824241624,-500.0,0.000349,2]
[313155269,1706824241635,-500.0,0.000349,2]
[313155270,1706824241646,-500.0,0.000349,2]
[313155271,1706824241656,-500.0,0.000349,2]
[313155272,1706824241666,-500.0,0.000349,2]
[313155273,1706824241676,-500.0,0.000349,2]
[313155274,1706824241687,-500.0,0.000349,2]
[313155275,1706824241698,-500.0,0.000349,2]
[313155276,1706824241708,-500.0,0.000349,2]
[313155277,1706824241719,-500.0,0.000349,2]
[313155278,1706824241729,-500.0,0.000349,2]
[313155280,1706824241740,-500.0,0.000349,2]
[313155281,1706824241751,-500.0,0.000349,2]
[313155283,1706824241762,-500.0,0.000349,2]
[313155286,1706824241773,-500.0,0.000349,2]
[313155287,1706824241783,-500.0,0.000349,2]
[313155288,1706824241793,-500.0,0.000349,2]
[313155291,1706824241805,-500.0,0.000349,2]
[313155294,1706824241815,-500.0,0.000349,2]
[313155296,1706824241825,-500.0,0.000349,2]
[313155298,1706824241836,-500.0,0.000349,2]
[313155300,1706824241846,-500.0,0.000349,2]
[313155302,1706824241857,-500.0,0.000349,2]
[313155303,1706824241867,-500.0,0.000349,2]
[313155304,1706824241877,-500.0,0.000349,2]
[313155305,1706824241888,-500.0,0.000349,2]
[313155306,1706824241899,-500.0,0.000349,2]
[313155307,1706824241910,-500.0,0.000349,2]
[313155308,1706824241921,-500.0,0.000349,2]
[313155309,1706824241931,-500.0,0.000349,2]
[313155310,1706824241946,-500.0,0.000349,2]
[313155311,1706824241956,-500.0,0.000349,2]
[313155312,1706824241966,-500.0,0.000349,2]
[313155313,1706824241976,-500.0,0.000349,2]
[313155314,1706824241987,-500.0,0.000349,2]
[313155315,1706824241998,-500.0,0.000349,2]
[313155316,1706824242008,-500.0,0.000349,2]
[313155317,1706824242019,-500.0,0.000349,2]
[313155318,1706824242029,-500.0,0.000349,2]
[313155319,1706824242039,-500.0,0.000349,2]
[313155320,1706824242049,-500.0,0.000349,2]
[313155321,1706824242059,-500.0,0.000349,2]
[313155322,1706824242069,-500.0,0.000349,2]
[313155323,1706824242080,-500.0,0.000349,2]
[313155324,1706824242090,-500.0,0.000349,2]
[313155325,1706824242100,-500.0,0.000349,2]
[313155326,1706824242110,-500.0,0.000349,2]
[313155327,1706824242120,-500.0,0.000349,2]
[313155328,1706824242132,-500.0,0.000349,2]
[313155329,1706824242147,-500.0,0.000349,2]
[313155330,1706824242157,-500.0,0.000349,2]
[313155331,1706824242167,-500.0,0.000349,2]
[313155332,1706824242178,-500.0,0.000349,2]
[313155333,1706824242188,-500.0,0.000349,2]
[313155334,1706824242197,-500.0,0.000349,2]
[313155335,1706824242208,-500.0,0.000349,2]
[313155336,1706824242220,-500.0,0.000349,2]
[313155337,1706824242230,-500.0,0.000349,2]
[313155338,1706824242240,-500.0,0.000349,2]
[313155339,1706824242250,-500.0,0.000349,2]
[313155340,1706824242261,-500.0,0.000349,2]
[313155341,1706824242271,-500.0,0.000349,2]
[313155342,1706824242282,-500.0,0.000349,2]
[313155343,1706824242295,-500.0,0.000349,2]
[313155344,1706824242305,-500.0,0.000349,2]
[313155345,1706824242316,-500.0,0.000349,2]
[313155346,1706824242328,-500.0,0.000349,2]
[313155347,1706824242338,-8991.34416525,0.000349,4]
[313155348,1706824242348,-12882.54703388,0.00035,4]
[313155349,1706824242358,-1107.03454363,0.00035,14]
[313155350,1706824242368,-1264.84923867,0.00035,4]
[313155351,1706824242378,-15799.86925253,0.00035,7]
[313155352,1706824242389,-449.7620639,0.00035,4]
[313155353,1706824242398,-155.0,0.00035,2]
[313155354,1706824242408,-155.0,0.00035,4]
[313155355,1706824242418,-3000.0,0.00035,2]
[313155356,1706824242429,-447.6805555,0.00035,4]
[313155357,1706824242439,-1500.0,0.00035,3]
[313155358,1706824242449,-155.0,0.00035,2]
[313155359,1706824242458,-450.0,0.00035,3]
[313155360,1706824242469,-3000.0,0.00035,2]
[313155361,1706824242479,-3000.0,0.00035,2]
[313155362,1706824242488,-3000.0,0.00035,2]
[313155363,1706824242498,-3000.0,0.00035,2]
[313155364,1706824242508,-3000.0,0.00035,2]
[313155365,1706824242518,-3078.54113967,0.00035,2]
[313155366,1706824242529,-269.09203502,0.00035588,2]
[313155367,1706824242539,-157.47,0.00035616,2]
[313155368,1706824242548,-8434.92,0.00035616,2]
[313155369,1706824242558,-4951.87,0.00035616,2]
[313155370,1706824242568,-1558.96,0.00035616,2]
[313155371,1706824242577,-155.0,0.00035617,2]
[313155372,1706824242588,-1250.0,0.00035866,2]
[313155373,1706824242597,-1233.0,0.00035866,2]
[313155374,1706824242607,-210.0,0.00035866,2]
[313155375,1706824242617,-299.07884601,0.00036,4]
[313155376,1706824242627,-1963.3128045,0.00036,2]
[313155377,1706824242636,-1963.3128045,0.00036,2]
[313155378,1706824242645,-1963.3128045,0.00036,2]
[313155379,1706824242655,-1963.3128045,0.00036,2]
[313155380,1706824242664,-1963.3128045,0.00036,2]
[313155381,1706824242673,-1963.3128045,0.00036,2]
[313155382,1706824242682,-1963.3128045,0.00036,2]
[313155383,1706824242692,-1963.3128045,0.00036,2]
[313155384,1706824242701,-203.0,0.00036,2]
[313155385,1706824242711,-297.85803049,0.00036,2]
[313155386,1706824242722,-297.85803049,0.00036,2]
[313155387,1706824242732,-297.85803049,0.00036,2]
[313155388,1706824242741,-297.85803049,0.00036,2]
[313155389,1706824242751,-297.85803049,0.00036,2]
[313155390,1706824242760,-297.85803049,0.00036,2]
[313155391,1706824242769,-297.85803049,0.00036,2]
[313155392,1706824242778,-297.85803049,0.00036,2]
[313155393,1706824242788,-297.85803049,0.00036,2]
[313155394,1706824242797,-297.85803049,0.00036,2]
[313155395,1706824242806,-297.85803049,0.00036,2]
[313155396,1706824242815,-297.85803049,0.00036,2]
[313155397,1706824242825,-297.85803049,0.00036,2]
[313155398,1706824242834,-297.85803049,0.00036,2]
[313155399,1706824242843,-297.85803049,0.00036,2]
[313155400,1706824242852,-297.85803049,0.00036,2]
[313155401,1706824242861,-297.85803049,0.00036,2]
[313155402,1706824242871,-297.85803049,0.00036,2]
[313155403,1706824242880,-297.85803049,0.00036,2]
[313155404,1706824242890,-297.85803049,0.00036,2]
[313155405,1706824242899,-297.85803049,0.00036,2]
[313155406,1706824242910,-297.85803049,0.00036,2]
[313155407,1706824242919,-297.85803049,0.00036,2]
[313155408,1706824242928,-297.85803049,0.00036,2]
[313155409,1706824242938,-297.85803049,0.00036,2]
[313155411,1706824242946,-297.85803049,0.00036,2]
[313155412,1706824242955,-297.85803049,0.00036,2]
[313155413,1706824242964,-297.85803049,0.00036,2]
[313155414,1706824242973,-297.85803049,0.00036,2]
[313155415,1706824242982,-297.85803049,0.00036,2]
[313155416,1706824242991,-297.85803049,0.00036,2]
[313155417,1706824243000,-297.85803049,0.00036,2]
[313155418,1706824243010,-297.85803049,0.00036,2]
[313155419,1706824243018,-297.85803049,0.00036,2]
[313155420,1706824243028,-297.85803049,0.00036,2]
[313155421,1706824243037,-297.85803049,0.00036,2]
[313155422,1706824243047,-297.85803049,0.00036,2]
[313155423,1706824243056,-297.85803049,0.00036,2]
[313155424,1706824243065,-297.85803049,0.00036,2]
[313155425,1706824243074,-297.85803049,0.00036,2]
[313155426,1706824243082,-297.85803049,0.00036,2]
[313155427,1706824243092,-297.85803049,0.00036,2]
[313155428,1706824243101,-297.85803049,0.00036,2]
[313155429,1706824243111,-297.85803049,0.00036,2]
[313155430,1706824243119,-297.85803049,0.00036,2]
[313155431,1706824243129,-297.85803049,0.00036,2]
[313155432,1706824243141,-297.85803049,0.00036,2]
[313155433,1706824243151,-297.85803049,0.00036,2]
[313155434,1706824243163,-297.85803049,0.00036,2]
[313155435,1706824243172,-297.85803049,0.00036,2]
[313155436,1706824243181,-297.85803049,0.00036,2]
[313155437,1706824243190,-297.85803049,0.00036,2]
[313155438,1706824243199,-297.85803049,0.00036,2]
[313155439,1706824243210,-297.85803049,0.00036,2]
[313155440,1706824243220,-297.85803049,0.00036,2]
[313155441,1706824243229,-297.85803049,0.00036,2]
[313155442,1706824243238,-297.85803049,0.00036,2]
[313155443,1706824243248,-297.85803049,0.00036,2]
[313155444,1706824243257,-297.85803049,0.00036,2]
[313155445,1706824243265,-297.85803049,0.00036,2]
[313155446,1706824243274,-297.85803049,0.00036,2]
[313155447,1706824243284,-297.85803049,0.00036,2]
[313155448,1706824243293,-297.85803049,0.00036,2]
[313155449,1706824243302,-297.85803049,0.00036,2]
[313155450,1706824243311,-297.85803049,0.00036,2]
[313155451,1706824243322,-297.85803049,0.00036,2]
[313155452,1706824243333,-297.85803049,0.00036,2]
[313155453,1706824243342,-297.85803049,0.00036,2]
[313155454,1706824243350,-297.85803049,0.00036,2]
[313155455,1706824243359,-297.85803049,0.00036,2]
[313155456,1706824243368,-297.85803049,0.00036,2]
[313155457,1706824243377,-297.85803049,0.00036,2]
[313155458,1706824243386,-297.85803049,0.00036,2]
[313155459,1706824243395,-297.85803049,0.00036,2]
[313155460,1706824243404,-297.85803049,0.00036,2]
[313155461,1706824243414,-297.85803049,0.00036,2]
[313155462,1706824243423,-297.85803049,0.00036,2]
[313155463,1706824243431,-297.85803049,0.00036,2]
[313155464,1706824243440,-297.85803049,0.00036,2]
[313155465,1706824243449,-297.85803049,0.00036,2]
[313155466,1706824243459,-297.85803049,0.00036,2]
[313155467,1706824243470,-297.85803049,0.00036,2]
[313155468,1706824243479,-297.85803049,0.00036,2]
[313155469,1706824243489,-297.85803049,0.00036,2]
[313155470,1706824243499,-297.85803049,0.00036,2]
[313155471,1706824243508,-297.85803049,0.00036,2]
[313155472,1706824243517,-297.85803049,0.00036,2]
[313155473,1706824243526,-297.85803049,0.00036,2]
[313155474,1706824243535,-297.85803049,0.00036,2]
[313155475,1706824243544,-297.85803049,0.00036,2]
[313155476,1706824243554,-297.85803049,0.00036,2]
[313155477,1706824243563,-297.85803049,0.00036,2]
[313155478,1706824243573,-297.85803049,0.00036,2]
[313155479,1706824243582,-297.85803049,0.00036,2]
[313155480,1706824243592,-297.85803049,0.00036,2]
[313155481,1706824243602,-297.85803049,0.00036,2]
[313155482,1706824243611,-297.85803049,0.00036,2]
[313155483,1706824243619,-297.85803049,0.00036,2]
[313155484,1706824243629,-297.85803049,0.00036,2]
[313155485,1706824243638,-297.85803049,0.00036,2]
[313155486,1706824243647,-800.0,0.00036158,5]
[313155487,1706824243657,-157.47,0.00036399,2]
[313155488,1706824243667,-157.8,0.00036438,2]
[313155489,1706824243678,-170.76794825,0.00036537,8]
[313155490,1706824243687,-5000.0,0.000366,3]
[313155491,1706824243697,-283.25,0.00036664,2]
[313155492,1706824243708,-185.13,0.000367,3]
[313155493,1706824243719,-185.13,0.000367,3]
[313155494,1706824243729,-185.13,0.000367,3]
[313155495,1706824243738,-185.13,0.000367,3]
[313155496,1706824243746,-185.13,0.000367,3]
[313155497,1706824243756,-185.13,0.000367,3]
[313155498,1706824243765,-185.13,0.000367,3]
[313155499,1706824243774,-185.13,0.000367,3]
[313155500,1706824243783,-185.13,0.000367,3]
[313155501,1706824243794,-185.13,0.000367,3]
[313155502,1706824243805,-185.13,0.000367,3]
[313155503,1706824243813,-185.13,0.000367,3]
[313155504,1706824243822,-185.13,0.000367,3]
[313155505,1706824243832,-185.13,0.000367,3]
[313155506,1706824243842,-185.13,0.000367,3]
[313155507,1706824243851,-185.13,0.000367,3]
[313155508,1706824243862,-185.13,0.000367,3]
[313155509,1706824243872,-185.13,0.000367,3]
[313155510,1706824243882,-185.13,0.000367,3]
[313155511,1706824243891,-185.13,0.000367,3]
[313155512,1706824243902,-4951.87,0.00036934,2]
[313155513,1706824243911,-155.0,0.00036987,2]
[313155514,1706824243920,-1550.0,0.00037,3]
[313155515,1706824243930,-269.09203502,0.00037008,2]
[313155516,1706824243938,-157.47,0.00037182,2]
[313155517,1706824243947,-874.5530351,0.00037493,2]
[313155518,1706824243957,-258.16152368,0.000378,7]
[313155519,1706824243966,-706.58237833,0.000378,2]
[313155520,1706824243975,-1280.97607979,0.000378,2]
[313155521,1706824243984,-1584.2912615,0.000378,2]
[313155522,1706824243993,-1765.39914214,0.00037865,2]
[313155523,1706824244002,-361.54578775,0.0003789,2]
[313155524,1706824244011,-4430.0420486,0.00037897,2]
[313155525,1706824244021,-598674.591159,0.000379,2]